Cogmind - Beta 11 @@@ ROGUE MODE // 2022.03.23 @ 00:25:45 Player: Disor Result: Destroyed by as-06370 with Assembled Heavy Rifle Performance ------------- Evolutions (0) 0 Regions Visited (2) 400 Robots Destroyed (6) 30 Value Destroyed (114) 114 Prototype IDs (2) 40 Alien Tech Used (0) 0 Bonus (0) 0 TOTAL SCORE: 584 Bonus ------- None Cogmind --------- Core Integrity 0/250 Matter 300/300 Energy 100/100 System Corruption 0% Temperature Cool (0) Movement Core (400) Ox7 Location -10/Mines Parts ------- > --- POWER (1) -------- (None) > --- PROPULSION (2) --- (None) > --- UTILITY (2) ------ Large Storage Unit Structural Scanner > --- WEAPON (2) ------- Hammer > --- INVENTORY (15) --- Small Storage Unit Peak State ------------ > --- POWER ------------ Ion Engine > --- PROPULSION ------- Wheel Wheel > --- UTILITY ---------- Small Storage Unit Structural Scanner > --- WEAPON ----------- Assault Rifle Light Assault Rifle > --- INVENTORY -------- (None) [Rating: 7] Favorites ----------- Power Ion Engine Engine Ion Engine Propulsion Wheel Wheel Wheel Utility Structural Scanner Device Structural Scanner Storage Small Storage Unit Weapon Assault Rifle Ballistic Gun Assault Rifle Impact Weapon Hammer Build | -11 -10 -10 ------- Run | Scr Mat Min Slots Evolved . | . . . Power . | . . . Propulsion . | . . . Utility . | . . . Weapon . | . . . Parts Attached 11 | 6 4 1 Power 1 | 1 . . Engine 1 | 1 . . Core . | . . . Reactor . | . . . Propulsion 2 | 2 . . Treads . | . . . Leg . | . . . Wheel 2 | 2 . . Hover . | . . . Flight . | . . . Utility 3 | 1 1 1 Device 1 | . 1 . Storage 2 | 1 . 1 Processor . | . . . Hackware . | . . . Protection . | . . . Artifact . | . . . Weapon 5 | 2 3 . Energy Gun . | . . . Energy Cannon . | . . . Ballistic Gun 3 | 2 1 . Ballistic Cannon . | . . . Launcher . | . . . Special Weapon . | . . . Impact Weapon 2 | . 2 . Slashing Weapon . | . . . Piercing Weapon . | . . . Special Melee Weapon . | . . . Unidentified Prototypes . | . . . Parts Lost 4 | . . 4 Power 1 | . . 1 Propulsion 2 | . . 2 Utility . | . . . Weapon 1 | . . 1 Highest Loss Streak 2 | . . 2 To Critical Strikes . | . . . Average Slot Usage (%) 78 | . 97 67 Engine 12 | . 14 12 Wheel 9 | . 28 . Device 13 | . 12 14 Storage 14 | . 14 14 Ballistic Gun 14 | . 17 12 Impact Weapon 12 | . 9 14 Naked Turns . | . . . Heaviest Build 30 | 13 15 30 Greatest Support 20 | 20 20 20 Greatest Overweight (x) 9 | . . 9 Average Overweight (x) 1 | . . 6 Largest Inventory Capacity 15 | 8 8 15 Average Capacity 10 | 5 8 12 Most Carried 5 | 5 2 1 Average Carried . | . . . Final Capacity 15 | 8 8 15 Final Carried 1 | . . 1 Class Distribution -------------------- 100% | Mutant Dominant Class ---------------- Mutant | -10/Materials Mutant | -10/Mines Resources | -11 -10 -10 ----------- Run | Scr Mat Min Matter Collected 394 | 193 191 10 Remotely . | . . . Salvage Created 133 | . 81 52 Parts 7 | . 5 2 Haulers Intercepted . | . . . Recyclers Shooed . | . . . Parts Field Recycled . | . . . Retrieved Matter . | . . . Parts Self-Destructed . | . . . Prevented . | . . . Kills | -11 -10 -10 ------- Run | Scr Mat Min Combat Hostiles Destroyed 6 | . 2 4 Melee 3 | . 1 2 Guns 1 | . 1 . Classes Destroyed 4 | . 2 2 Watcher 1 | . 1 . Swarmer 3 | . . 3 Grunt 2 | . 2 . Assembled 1 | . . 1 Best Kill Streak 2 | . 2 2 Combat Bots Only 2 | . 1 2 Max Kills in Single Turn 1 | . 1 1 Gunslinging . | . . . Exploded . | . . . Melee 1 | . 1 1 Uniques/NPCs Destroyed . | . . . Combat | -11 -10 -10 -------- Run | Scr Mat Min Damage Taken 612 | . 186 426 Core 252 | . 55 197 Absorbed by Shields . | . . . Core Remaining (%) 100 | 100 . . Volleys Fired 23 | . 23 . Largest 2 | . 2 . Hottest 40 | . 40 . Shots Fired 38 | . 38 . Gun 38 | . 38 . Cannon . | . . . Launcher . | . . . Special . | . . . Kinetic 38 | . 38 . Thermal . | . . . Explosive . | . . . Electromagnetic . | . . . Robot Hit Streak 4 | . 4 . Robot Miss Streak 4 | . 4 . Penetration Max . | . . . Secondary Targets . | . . . Shots Hit Robots 33 | . 24 9 Core Hits 5 | . 4 1 Critical Kills . | . . . Critical Parts Destroyed 2 | . 1 1 Critical Strikes 2 | . 1 1 Smash 2 | . 1 1 Melee Attacks 23 | . 5 18 Impact 23 | . 5 18 Slashing . | . . . Piercing . | . . . Sneak Attacks 1 | . . 1 Combat Hostiles 1 | . . 1 Follow-up Attacks . | . . . Damage Inflicted 500 | . 289 211 Guns 227 | . 227 . Cannons . | . . . Explosions . | . . . Melee 273 | . 62 211 Ramming . | . . . Kinetic 227 | . 227 . Thermal . | . . . Explosive . | . . . Electromagnetic . | . . . Impact 273 | . 62 211 Slashing . | . . . Piercing . | . . . Highest Corruption . | . . . Average Corruption . | . . . Corruption Purged . | . . . Corruption Blocked . | . . . Overload Shots . | . . . Overflow Damage 83 | . 19 64 Projectiles . | . . . Explosions . | . . . Melee 83 | . 19 64 Knockbacks . | . . . Impact . | . . . Kinetic . | . . . Secondary . | . . . Self-Inflicted Damage . | . . . Shots . | . . . Rammed . | . . . Targets Rammed . | . . . Kicked . | . . . Crushed . | . . . Highest Temperature 12 | . 12 . Average Temperature 6 | . 6 . Received Heat Transfer 102 | . 102 . Siege Activations . | . . . Robots Corrupted . | . . . Combat Hostiles . | . . . Parts Fried 4 | . 1 3 Impact Corruptions 7 | . 2 5 Robots Melted . | . . . Combat Hostiles . | . . . Parts Melted . | . . . Heat Transferred . | . . . Parts Sabotaged . | . . . Parts Stolen . | . . . Parts Stripped . | . . . Power Chain Reactions . | . . . Missiles Intercepted . | . . . Alert | -11 -10 -10 ------- Run | Scr Mat Min Peak Influence 89 | . 89 84 Initial 34 | . . 34 Average 51 | . 50 57 Maximum Alert Level . | . . . Low Security (%) 100 | 100 100 100 Level 1 . | . . . Level 2 . | . . . Level 3 . | . . . Level 4 . | . . . Level 5 . | . . . High Security . | . . . Max Security . | . . . Squads Dispatched 2 | . 2 . Investigation 1 | . 1 . Extermination . | . . . Reinforcement 1 | . 1 . Assault . | . . . Garrison . | . . . Intercept . | . . . Searches Triggered . | . . . Construction Impeded . | . . . Haulers Reinforced . | . . . Active Scanning Responses . | . . . Cargo Convoy Interrupts . | . . . Stealth | -11 -10 -10 --------- Run | Scr Mat Min Distress Signals . | . . . Communications Jammed . | . . . Distress Signals . | . . . Times Spotted 15 | . 8 7 Peak Tracking Total 4 | . 2 4 Tactical Retreats . | . . . Traps | -11 -10 -10 ------- Run | Scr Mat Min Traps Triggered . | . . . Indirectly . | . . . Trap Hack Attempts . | . . . Triggered . | . . . Disarmed . | . . . Reprogrammed . | . . . Reused . | . . . Traps Extracted . | . . . Installed . | . . . Triggered . | . . . Machines | -11 -10 -10 ---------- Run | Scr Mat Min Machines Disabled . | . . . Max in Single Turn . | . . . Machines Sabotaged . | . . . Garrisons Compromised . | . . . Overloaded Fab Kills . | . . . Hacking | -11 -10 -10 --------- Run | Scr Mat Min Machines Accessed 4 | . 3 1 Terminals 4 | . 3 1 Fabricators . | . . . Repair Stations . | . . . Recycling Units . | . . . Scanalyzers . | . . . Garrison Access . | . . . Total Hacks 10 | . 9 1 Successful 8 | . 7 1 Failed 2 | . 2 . Catastrophic . | . . . Database Lockouts . | . . . Manual . | . . . Terminals 10 | . 9 1 Fabricators . | . . . Repair Stations . | . . . Recycling Units . | . . . Scanalyzers . | . . . Garrison Access . | . . . Terminal Hacks 8 | . 7 1 Record 5 | . 5 . Prototype ID Bank 1 | . 1 . Zone Layout 2 | . 1 1 Fabricator Hacks . | . . . Repair Station Hacks . | . . . Recycling Unit Hacks . | . . . Scanalyzer . | . . . Garrison Access Hacks . | . . . Unauthorized Hacks . | . . . Terminals . | . . . Fabricators . | . . . Repair Stations . | . . . Recycling Units . | . . . Scanalyzers . | . . . Garrison Access . | . . . Data Cores Recovered . | . . . Used . | . . . Hacking Detections 3 | . 3 . Full Trace Events 1 | . 1 . Feedback Events . | . . . Feedback Blocked . | . . . Robot Schematics Acquired . | . . . Robots Built . | . . . Authchips . | . . . Time . | . . . Total Robot Build Rating . | . . . Part Schematics Acquired . | . . . Parts Built . | . . . Authchips . | . . . Time . | . . . Total Part Build Rating . | . . . Parts Repaired . | . . . Time . | . . . Parts Recycled . | . . . Recycled Matter . | . . . Retrieved Matter . | . . . Retrieved Components . | . . . Parts Scanalyzed . | . . . Part Schematics Acquired . | . . . Parts Damaged . | . . . Bothacking | -11 -10 -10 ------------ Run | Scr Mat Min Used RIF Installer . | . . . Robots Hacked . | . . . Non-combat . | . . . Combat . | . . . Robot Hacks Applied . | . . . Relay Couplers Released . | . . . Fabnet Peak Effective % . | . . . Robots Rewired . | . . . Allies Hacked . | . . . Hacks Repelled . | . . . Allies | -11 -10 -10 -------- Run | Scr Mat Min Total Allies . | . . . Largest Group . | . . . Highest-Rated Group . | . . . Highest-Rated Ally . | . . . Total Orders . | . . . Ally Attacks . | . . . Total Damage . | . . . Kills . | . . . Allies Corrupted . | . . . Allies Melted . | . . . Intel | -11 -10 -10 ------- Run | Scr Mat Min Robot Analysis Total . | . . . Derelict Logs Recovered 1 | . . 1 Drone Launches . | . . . Drone Recoveries . | . . . Exploration | -11 -10 -10 ------------- Run | Scr Mat Min Turns Passed 919 | 68 285 566 Spaces Moved 481 | 80 254 147 Core 180 | 38 . 142 Treads . | . . . Legs . | . . . Wheels 301 | 42 254 5 Hover . | . . . Flight . | . . . Fastest Speed 50 | 50 80 80 Average Speed 160 | 65 80 350 Slowest Speed 500 | 80 80 500 Overloaded Moves . | . . . Propulsion Burnouts . | . . . Robots Hopped . | . . . Cave-ins Triggered . | . . . Exploration Rate (%) 22 | 4 39 23 Regions Visited 2 Branch Regions 1 Pre-discovered Areas . | . . . Known Exits Taken . | . . . Unknown Exits Taken 2 | 1 1 . Scrap Searched 1 | . . 1 Spaces Dug . | . . . Terrain Destroyed . | . . . Melee . | . . . Projectile . | . . . AOE . | . . . Terrain Rammed . | . . . Walls Destroyed . | . . . Machines Disabled . | . . . Actions | -11 -10 -10 --------- Run | Scr Mat Min Total 554 | 95 292 167 Wait 2 | 2 . . Move 479 | 79 253 147 Hop . | . . . Pick Up 12 | 7 4 1 Fast Attach . | . . . Attach 9 | 6 3 . Detach . | . . . Swap 2 | . 1 1 Drop 4 | 1 3 . Fire 23 | . 23 . Melee 23 | . 5 18 Ram . | . . . Kick . | . . . Crush . | . . . Escape Stasis . | . . . Rewire . | . . . Trap . | . . . Miscellaneous . | . . . Route ------- -11/Scrapyard -10/Materials (discovered 2 exits: [*Mat] / *Min) -10/Mines (discovered 1 exit: [*Mat]) History --------- Turn | Location | Event 30 | -11/Scrapyard | Discovered new exit (range 15) 69 | -11/Scrapyard | Entered Materials 176 | -10/Materials | Discovered new exit (range 4) 318 | -10/Materials | Build established: Mutant 340 | -10/Materials | Discovered new exit (range 15) 354 | -10/Materials | Entered Mines 370 | -10/Mines | Core integrity fell below 50% 390 | -10/Mines | Met a Derelict bent on vengeance 720 | -10/Mines | Discovered new exit (range 6) 776 | -10/Mines | Assembled infested the area 849 | -10/Mines | Core integrity fell below 20% 894 | -10/Mines | Learned 2 Materials zone layouts 920 | -10/Mines | Destroyed by as-06370 with Assembled Heavy Rifle Last Messages --------------- 00398_ Lgt. Assault Rifle fried. 00430_ Connecting with Terminal... 00430_ Current location identified: Mines >>Layout(Zone) Retrieving Zone 7L layout... Downloaded map data. 00583_ Acquired Lrg. Storage Unit. 00585_ Acquired 10 matter. 00630_ Searching scrap... 00630_ Found Ion Engine. 00630_ Found 19 Matter. 00720_ EXIT=FOUND 00776_ ALERT: Infestation in the mines, dispatching Demolisher response squad. 00843_ Assault Rifle destroyed. 00850_ Ion Engine destroyed. 00856_ as-56925 destroyed. 00894_ Acquired derelict log, extracted data. Data stored: Materials zone layouts (x2). [Achievement: First Step to Greatness] Map ----- +----------------------------------------------------+ | ???????????????????????????????## ##?? | | ???????????????????????????????## ##?? | | ???????????????????????????????## ##?? | | ???????????????????????????????## ##?? | | ???????????????????????????????## ##?? | | ???????????????????????????????## ##?? | | ???????????????????????????????## ##?? | | ???????????????????????????????## ##?? | | ???????????????????????????###### ##?? | | ???????????????????????????###### ##?? | | ???????????????????????????## ##?? | | ???????????????????????????## ######?? | | ??????????????????????? ##### ######?? | | ??????????????????????? ##### ###????? | | ???????????????????????## ##????? | | ???????????### ????????## ##????? | | ??????????#### ????????## < ##????? | | ????????##### ####???## ##????? | | ???????? ### ######## ##????? | | ???????? ##### ##????? | | ???????# * ## #####????? | | ???????## ## #####????? | | ???????###???? ## ### ## k##???????? | | ??????????????####?#### ## u##???????? | | ?????????????????????## ## ##???????? | | ?????????????????????## a@ ##???????? | | ?????????????????????#########???????? | | ?????????????????????#########???????? | | | | | | | | | | | | | | | | | | | | | | | | | | | | | | | | | | | | | | | | | | | | | +----------------------------------------------------+ Best States ------------- Heat Dissipation 25 Energy Generation 10 Energy Capacity 250 Matter Stores 300 Matter Capacity 300 Sight Range 16 Terrain Scan Density 10 Evasion (%) 50 Item Schematics ----------------- None Robot Schematics ------------------ None Fabricated ------------ Nothing Alien Tech Used ----------------- None Achievements -------------- First Step to Greatness Challenges ------------ None Game ------ Seed BiometalImprinterTendrils Manual? 0 Play Time 00:15:58 Cumulative 2.2 hours Start 2022.03.20 @ 00:47:21 End 2022.03.23 @ 00:25:45 Sessions 1 Manual Loads 0 Difficulty Rogue Special Mode None Game No. 9 Rogue 8 Adventurer 0 Explorer 1 Win Type - Total 0 Types 0/0/0/0/0/0/0/0/0 Lore% 1 Gallery% 6 Achievement% 2 Wizard Run 0 Options --------- ASCII 0 Keyboard 0 Movement Mouse Keybinds 0 Fullscreen 1 Font 18/SmallcapsGlow Map View 76x50 Tactical HUD 1 Map Filters NONE Filters NONE Steam 1 RUN: baa50381-a163-4832-bd40-9c9aaeeee91d